Department Family,Entity,Date,Expense Type,Expense Area,Supplier,Transaction Number,AP Amount,VAT Registration Number,Purchase Invoice Number
Department of Health,Bridgewater Community Healthcare NHS Foundation Trust,30-Jun-15,Rent,Computing,WIGAN COUNCIL,13912247,"63,963.90",,71225304606
Department of Health,Bridgewater Community Healthcare NHS Foundation Trust,30-Jun-15,OOH Comms Equip/GP Rotas,General Medical Services,DR JK AGARWALA,13925590,"33,851.26",,MAY15 2930
Department of Health,Bridgewater Community Healthcare NHS Foundation Trust,30-Jun-15,Rent,Bath St Health & Wellbeing Centre,COMMUNITY HEALTH PARTNERSHIPS,13947432,"43,289.93",782562113,50379020
Department of Health,Bridgewater Community Healthcare NHS Foundation Trust,30-Jun-15,Rent,Bath St Health & Wellbeing Centre,COMMUNITY HEALTH PARTNERSHIPS,13947439,"43,289.93",782562113,50379021
Department of Health,Bridgewater Community Healthcare NHS Foundation Trust,30-Jun-15,Rent,Child Development Centre (Orford),COMMUNITY HEALTH PARTNERSHIPS,13947466,"39,331.63",782562113,50379030
Department of Health,Bridgewater Community Healthcare NHS Foundation Trust,30-Jun-15,Rent,Child Development Centre (Orford),COMMUNITY HEALTH PARTNERSHIPS,13947471,"39,331.63",782562113,50379032
Department of Health,Bridgewater Community Healthcare NHS Foundation Trust,30-Jun-15,Lease Rents,Boston House,COMMUNITY HEALTH PARTNERSHIPS,13947476,"55,499.36",782562113,50379033
Department of Health,Bridgewater Community Healthcare NHS Foundation Trust,30-Jun-15,Lease Rents,Boston House,COMMUNITY HEALTH PARTNERSHIPS,13947480,"55,499.36",782562113,50379034
Department of Health,Bridgewater Community Healthcare NHS Foundation Trust,30-Jun-15,Lease Rents,Newton Community Hospital,COMMUNITY HEALTH PARTNERSHIPS,13947498,"93,618.55",782562113,50379055
Department of Health,Bridgewater Community Healthcare NHS Foundation Trust,30-Jun-15,Lease Rents,Newton Community Hospital,COMMUNITY HEALTH PARTNERSHIPS,13947500,"93,618.55",782562113,50379056
Department of Health,Bridgewater Community Healthcare NHS Foundation Trust,30-Jun-15,Lease Rents,Pemberton Health Centre,COMMUNITY HEALTH PARTNERSHIPS,13947518,"27,608.41",782562113,50379063
Department of Health,Bridgewater Community Healthcare NHS Foundation Trust,30-Jun-15,Lease Rents,Pemberton Health Centre,COMMUNITY HEALTH PARTNERSHIPS,13947526,"27,608.41",782562113,50379067
Department of Health,Bridgewater Community Healthcare NHS Foundation Trust,30-Jun-15,Lease Rents,Platt Bridge Community HC,COMMUNITY HEALTH PARTNERSHIPS,13947535,"60,466.44",782562113,50379068
Department of Health,Bridgewater Community Healthcare NHS Foundation Trust,30-Jun-15,Lease Rents,Platt Bridge Community HC,COMMUNITY HEALTH PARTNERSHIPS,13947543,"60,466.44",782562113,50379069
Department of Health,Bridgewater Community Healthcare NHS Foundation Trust,30-Jun-15,Lease Rents,Widnes HCRC,COMMUNITY HEALTH PARTNERSHIPS,13947549,"35,224.45",782562113,50379070
Department of Health,Bridgewater Community Healthcare NHS Foundation Trust,30-Jun-15,Lease Rents,Widnes HCRC,COMMUNITY HEALTH PARTNERSHIPS,13947558,"35,224.45",782562113,50379071
Department of Health,Bridgewater Community Healthcare NHS Foundation Trust,30-Jun-15,Lease Rents,Chandler House,COMMUNITY HEALTH PARTNERSHIPS,13947567,"36,962.02",782562113,50379072
Department of Health,Bridgewater Community Healthcare NHS Foundation Trust,30-Jun-15,Lease Rents,Chandler House,COMMUNITY HEALTH PARTNERSHIPS,13947579,"36,962.02",782562113,50379073
Department of Health,Bridgewater Community Healthcare NHS Foundation Trust,30-Jun-15,Service Charge,Health Services at Wolves,WARRINGTON FC LTD,14027897,"37,620.00",152685258,18358
Department of Health,Bridgewater Community Healthcare NHS Foundation Trust,30-Jun-15,Computer Maintenance,Computing - ALW,CSA WAVERLEY LTD,14029492,"32,022.00",468204442,IN661266
Department of Health,Bridgewater Community Healthcare NHS Foundation Trust,30-Jun-15,Rent,General Management,COMMUNITY HEALTH PARTNERSHIPS,14069590,"69,432.60",782562113,50377576
Department of Health,Bridgewater Community Healthcare NHS Foundation Trust,30-Jun-15,Rent,Estates Management,NHS WIGAN BOROUGH CCG,14070624,"825,294.00",,7014000295
Department of Health,Bridgewater Community Healthcare NHS Foundation Trust,30-Jun-15,CCG Income,Contractual Income,NHS HALTON CCG,14126439,"35,000.00",,7012200246
Department of Health,Bridgewater Community Healthcare NHS Foundation Trust,30-Jun-15,Independent Sector,Offender Health - Risley,DR MW HUSSAIN,14162128,"43,750.00",,0304HMPRISLEY1415
Department of Health,Bridgewater Community Healthcare NHS Foundation Trust,30-Jun-15,Lease Rents,Bevan House,SHARMA INVESTMENTS LTD,14244705,"33,125.00",,BE17120615
Department of Health,Bridgewater Community Healthcare NHS Foundation Trust,30-Jun-15,Hcare Srv Rec NHS Trust,Midwifery Halton,ST HELENS & KNOWSLEY HOSPITALS NHS TRUST,14265510,"57,409.00",654943996,16751376
Department of Health,Bridgewater Community Healthcare NHS Foundation Trust,30-Jun-15,Hcare Srv Rec NHS Trust,Midwifery Halton,ST HELENS & KNOWSLEY HOSPITALS NHS TRUST,14265529,"57,409.00",654943996,16750936
Department of Health,Bridgewater Community Healthcare NHS Foundation Trust,30-Jun-15,Hcare Srv Rec NHS Trust,Midwifery Halton,ST HELENS & KNOWSLEY HOSPITALS NHS TRUST,14265568,"57,409.00",654943996,16749321
Department of Health,Bridgewater Community Healthcare NHS Foundation Trust,30-Jun-15,Services Received - NHSTs,Walk In Centre St Helens,ST HELENS & KNOWSLEY HOSPITALS NHS TRUST,14266016,"26,414.25",654943996,16755177
Department of Health,Bridgewater Community Healthcare NHS Foundation Trust,30-Jun-15,Hcare Srv Rec NHS Trust,Midwifery Halton,ST HELENS & KNOWSLEY HOSPITALS NHS TRUST,14280522,"57,409.00",654943996,16750539
Department of Health,Bridgewater Community Healthcare NHS Foundation Trust,30-Jun-15,Hcare Srv Rec NHS Trust,Midwifery Halton,ST HELENS & KNOWSLEY HOSPITALS NHS TRUST,14280535,"57,409.00",654943996,16749639
Department of Health,Bridgewater Community Healthcare NHS Foundation Trust,30-Jun-15,Rent,89 Spencer House,JLL,14280982,"38,690.40",,201500000397
